[Event "Live Chess"]
[Site "Chess.com"]
[Date "2023.05.21"]
[Round "-"]
[White "xx_blindpuffin_xx"]
[Black "gmnorfolk"]
[Result "0-1"]
[WhiteElo "2199"]
[BlackElo "2124"]
[TimeControl "300"]
[EndTime "16:30:20 PDT"]
[Termination "gmnorfolk won by resignation"]

1. d4 {[%clk 0:04:58.3]} 1... Nf6 {[%clk 0:04:58.5]} 2. Bf4 {[%clk 0:04:53.2]}
2... d5 {[%clk 0:04:55.2]} 3. e3 {[%clk 0:04:52.2]} 3... e6 {[%clk 0:04:53.2]}
4. Nf3 {[%clk 0:04:51.2]} 4... Bd6 {[%clk 0:04:52.8]} 5. Bg3 {[%clk 0:04:49.9]}
5... O-O {[%clk 0:04:52.1]} 6. Bd3 {[%clk 0:04:48.3]} 6... c5 {[%clk 0:04:51.5]}
7. c3 {[%clk 0:04:47.4]} 7... b6 {[%clk 0:04:50.4]} 8. Qe2 {[%clk 0:04:45.4]}
8... Bb7 {[%clk 0:04:49.3]} 9. Nbd2 {[%clk 0:04:43.9]} 9... Qc7 {[%clk 0:04:44]}
10. Ne5 {[%clk 0:04:42.6]} 10... Nbd7 {[%clk 0:04:40.6]} 11. f4 {[%clk
0:04:40.4]} 11... Ne4 {[%clk 0:04:37.9]} 12. Nxe4 {[%clk 0:04:26.5]} 12... dxe4
{[%clk 0:04:36.2]} 13. Bc2 {[%clk 0:04:26.2]} 13... f6 {[%clk 0:04:32.3]} 14.
Ng4 {[%clk 0:04:23.2]} 14... cxd4 {[%clk 0:04:27.8]} 15. exd4 {[%clk 0:04:20.6]}
15... f5 {[%clk 0:04:25.2]} 16. Ne5 {[%clk 0:04:18.6]} 16... Nxe5 {[%clk
0:04:22.4]} 17. fxe5 {[%clk 0:04:11.6]} 17... Be7 {[%clk 0:04:21.1]} 18. h4
{[%clk 0:04:10.9]} 18... f4 {[%clk 0:04:16.4]} 19. Bf2 {[%clk 0:04:01.5]} 19...
e3 {[%clk 0:04:06.5]} 20. Bg1 {[%clk 0:03:54.2]} 20... Qc6 {[%clk 0:03:35]} 21.
Qh5 {[%clk 0:03:43.6]} 21... h6 {[%clk 0:03:25.8]} 22. Qg6 {[%clk 0:03:38.1]}
22... Qxg2 {[%clk 0:03:09.9]} 23. Qh7+ {[%clk 0:02:52.9]} 23... Kf7 {[%clk
0:03:06.6]} 24. O-O-O {[%clk 0:02:45.3]} 24... Rh8 {[%clk 0:02:58]} 25. Qd3
{[%clk 0:02:36.7]} 25... Qxh1 {[%clk 0:02:48.7]} 26. Bxe3 {[%clk 0:02:35.2]}
26... Qxd1+ {[%clk 0:02:33.4]} 27. Kxd1 {[%clk 0:02:34.3]} 27... fxe3 {[%clk
0:02:31.2]} 28. Qg6+ {[%clk 0:02:31.7]} 28... Kf8 {[%clk 0:02:28.7]} 29. Qxe6
{[%clk 0:02:15.9]} 29... Bf3+ {[%clk 0:02:18.8]} 30. Kc1 {[%clk 0:02:10]} 30...
e2 {[%clk 0:02:03.7]} 31. Qf5+ {[%clk 0:01:54]} 31... Ke8 {[%clk 0:02:02.3]} 32.
Bb3 {[%clk 0:01:52.3]} 32... e1=Q+ {[%clk 0:01:58.2]} 0-1

[Event "Live Chess"]
[Site "Chess.com"]
[Date "2023.05.21"]
[Round "-"]
[White "Brooms1989"]
[Black "JoeyCage"]
[Result "0-1"]
[WhiteElo "1090"]
[BlackElo "2296"]
[TimeControl "300"]
[EndTime "16:30:42 PDT"]
[Termination "JoeyCage won by checkmate"]

1. e4 {[%clk 0:04:55.4]} 1... c5 {[%clk 0:04:59.2]} 2. Nc3 {[%clk 0:04:53.7]}
2... e5 {[%clk 0:04:56.5]} 3. f4 {[%clk 0:04:49.6]} 3... exf4 {[%clk 0:04:55.3]}
4. Nf3 {[%clk 0:04:49]} 4... Nc6 {[%clk 0:04:53.1]} 5. Bb5 {[%clk 0:04:47.2]}
5... a6 {[%clk 0:04:50.8]} 6. Bxc6 {[%clk 0:04:46]} 6... dxc6 {[%clk 0:04:49.3]}
7. O-O {[%clk 0:04:45.6]} 7... Nf6 {[%clk 0:04:45.5]} 8. d3 {[%clk 0:04:40.1]}
8... Nh5 {[%clk 0:04:42.6]} 9. Ne1 {[%clk 0:04:24.6]} 9... g6 {[%clk 0:04:36.1]}
10. Bxf4 {[%clk 0:04:22]} 10... Nxf4 {[%clk 0:04:34.4]} 11. Rxf4 {[%clk
0:04:21.9]} 11... Bg7 {[%clk 0:04:33.3]} 12. Qf3 {[%clk 0:04:15.4]} 12... O-O
{[%clk 0:04:31.4]} 13. Qg3 {[%clk 0:04:11.1]} 13... Be5 {[%clk 0:04:28.9]} 14.
Qf3 {[%clk 0:03:58.4]} 14... Qd4+ {[%clk 0:04:22.8]} 15. Kh1 {[%clk 0:03:53.2]}
15... Bxf4 {[%clk 0:04:20.8]} 16. Qxf4 {[%clk 0:03:52.1]} 16... f5 {[%clk
0:04:20.1]} 17. Nf3 {[%clk 0:03:47.9]} 17... fxe4 {[%clk 0:04:02.1]} 18. Qxf8+
{[%clk 0:03:36.3]} 18... Kxf8 {[%clk 0:04:00.8]} 19. Nxd4 {[%clk 0:03:35.4]}
19... cxd4 {[%clk 0:03:59.9]} 20. Ne2 {[%clk 0:03:34.1]} 20... exd3 {[%clk
0:03:57.9]} 21. cxd3 {[%clk 0:03:32.8]} 21... c5 {[%clk 0:03:56.9]} 22. Rc1
{[%clk 0:03:30.3]} 22... b6 {[%clk 0:03:55.3]} 23. b4 {[%clk 0:03:27.2]} 23...
cxb4 {[%clk 0:03:53.3]} 24. Nxd4 {[%clk 0:03:25.6]} 24... a5 {[%clk 0:03:51.8]}
25. Ne6+ {[%clk 0:03:15.9]} 25... Bxe6 {[%clk 0:03:50]} 26. Rc6 {[%clk
0:03:13.6]} 26... Bxa2 {[%clk 0:03:47.7]} 27. Rxb6 {[%clk 0:03:12.5]} 27... b3
{[%clk 0:03:46.4]} 28. Kg1 {[%clk 0:03:10.2]} 28... Rc8 {[%clk 0:03:45]} 29. Kf2
{[%clk 0:03:09.2]} 29... Rc2+ {[%clk 0:03:43.5]} 30. Ke3 {[%clk 0:03:08.2]}
30... b2 {[%clk 0:03:42.6]} 31. Kd4 {[%clk 0:03:06.6]} 31... b1=Q {[%clk
0:03:40.9]} 32. Rxb1 {[%clk 0:03:06.4]} 32... Bxb1 {[%clk 0:03:39.7]} 33. Ke3
{[%clk 0:03:04.7]} 33... Rxg2 {[%clk 0:03:38.4]} 34. d4 {[%clk 0:03:03.8]} 34...
Rxh2 {[%clk 0:03:36.9]} 35. d5 {[%clk 0:03:02.5]} 35... Ke7 {[%clk 0:03:35.9]}
36. Kd4 {[%clk 0:03:01.7]} 36... Kd6 {[%clk 0:03:34.5]} 37. Kc4 {[%clk
0:03:00.9]} 37... Rh4+ {[%clk 0:03:33]} 38. Kb5 {[%clk 0:02:59.4]} 38... Kxd5
{[%clk 0:03:31.9]} 39. Kxa5 {[%clk 0:02:59.3]} 39... Kc6 {[%clk 0:03:29.6]} 40.
Ka6 {[%clk 0:02:57.4]} 40... Ra4# {[%clk 0:03:28.7]} 0-1

[Event "Live Chess"]
[Site "Chess.com"]
[Date "2023.05.21"]
[Round "-"]
[White "KGreenGator"]
[Black "AbilifyXL"]
[Result "1-0"]
[WhiteElo "1768"]
[BlackElo "1957"]
[TimeControl "300"]
[EndTime "16:31:08 PDT"]
[Termination "KGreenGator won by resignation"]

1. c3 {[%clk 0:04:59]} 1... c6 {[%clk 0:04:58.9]} 2. d4 {[%clk 0:04:58.4]} 2...
d5 {[%clk 0:04:58.1]} 3. Nf3 {[%clk 0:04:56.9]} 3... Nf6 {[%clk 0:04:57.6]} 4.
Bf4 {[%clk 0:04:55.3]} 4... Bf5 {[%clk 0:04:56.8]} 5. h3 {[%clk 0:04:54.4]} 5...
e6 {[%clk 0:04:56.2]} 6. Nbd2 {[%clk 0:04:52.6]} 6... Bd6 {[%clk 0:04:55.6]} 7.
Ne5 {[%clk 0:04:50.7]} 7... Qc7 {[%clk 0:04:54.4]} 8. Ndf3 {[%clk 0:04:48.3]}
8... Nbd7 {[%clk 0:04:53.4]} 9. e3 {[%clk 0:04:46.9]} 9... O-O {[%clk
0:04:51.5]} 10. Bd3 {[%clk 0:04:40]} 10... Bxd3 {[%clk 0:04:50]} 11. Qxd3 {[%clk
0:04:36.9]} 11... Ne4 {[%clk 0:04:47.7]} 12. O-O {[%clk 0:04:33.9]} 12... h6
{[%clk 0:04:46.3]} 13. Nd2 {[%clk 0:04:26.8]} 13... Ndf6 {[%clk 0:04:44]} 14. f3
{[%clk 0:04:22.8]} 14... Nxd2 {[%clk 0:04:42.3]} 15. Qxd2 {[%clk 0:04:21.5]}
15... Nd7 {[%clk 0:04:40.8]} 16. Nxd7 {[%clk 0:04:18.3]} 16... Qxd7 {[%clk
0:04:40.7]} 17. Bxd6 {[%clk 0:04:16.9]} 17... Qxd6 {[%clk 0:04:40.6]} 18. e4
{[%clk 0:04:16.2]} 18... e5 {[%clk 0:04:39.3]} 19. dxe5 {[%clk 0:04:13.6]} 19...
Qxe5 {[%clk 0:04:38.3]} 20. exd5 {[%clk 0:04:12.6]} 20... cxd5 {[%clk
0:04:37.3]} 21. Rfe1 {[%clk 0:04:11.1]} 21... Qd6 {[%clk 0:04:36.1]} 22. Rad1
{[%clk 0:04:09.7]} 22... Rad8 {[%clk 0:04:34.9]} 23. c4 {[%clk 0:04:07.7]} 23...
d4 {[%clk 0:04:33.2]} 24. Re4 {[%clk 0:04:06.4]} 24... d3 {[%clk 0:04:28.7]} 25.
Re3 {[%clk 0:04:05.2]} 25... Qc5 {[%clk 0:04:27.8]} 26. b3 {[%clk 0:04:02.1]}
26... Rfe8 {[%clk 0:04:26.3]} 27. Kf2 {[%clk 0:03:59.6]} 27... f5 {[%clk
0:04:21.5]} 28. g3 {[%clk 0:03:57.8]} 28... g5 {[%clk 0:04:20.3]} 29. f4 {[%clk
0:03:49.9]} 29... gxf4 {[%clk 0:04:17.1]} 30. gxf4 {[%clk 0:03:49.5]} 30... Qd4
{[%clk 0:04:16.2]} 31. Kf3 {[%clk 0:03:47.8]} 31... Re4 {[%clk 0:04:08.6]} 32.
Rxd3 {[%clk 0:03:43.5]} 1-0

[Event "Live Chess"]
[Site "Chess.com"]
[Date "2023.05.21"]
[Round "-"]
[White "HD_IN4k"]
[Black "mikkyb4"]
[Result "0-1"]
[WhiteElo "394"]
[BlackElo "1017"]
[TimeControl "300"]
[EndTime "16:31:12 PDT"]
[Termination "mikkyb4 won by checkmate"]

1. d4 {[%clk 0:04:56.8]} 1... g6 {[%clk 0:04:59.3]} 2. c4 {[%clk 0:04:56.2]}
2... Bg7 {[%clk 0:04:58.6]} 3. Nf3 {[%clk 0:04:52.4]} 3... d6 {[%clk 0:04:56.8]}
4. Nc3 {[%clk 0:04:36.1]} 4... Nc6 {[%clk 0:04:52.5]} 5. Qa4 {[%clk 0:04:32]}
5... Nf6 {[%clk 0:04:48.1]} 6. d5 {[%clk 0:04:29.9]} 6... Bd7 {[%clk 0:04:40.4]}
7. dxc6 {[%clk 0:04:28.7]} 7... Bxc6 {[%clk 0:04:39.7]} 8. Qd1 {[%clk
0:04:11.3]} 8... Ne4 {[%clk 0:04:30.8]} 9. Nxe4 {[%clk 0:04:08.8]} 9... Bxe4
{[%clk 0:04:28.8]} 10. Ng5 {[%clk 0:04:05.4]} 10... Bc6 {[%clk 0:04:25.5]} 11.
e4 {[%clk 0:03:57.2]} 11... O-O {[%clk 0:04:12.3]} 12. h4 {[%clk 0:03:45.2]}
12... h6 {[%clk 0:04:08]} 13. h5 {[%clk 0:03:28.2]} 13... hxg5 {[%clk
0:04:05.8]} 14. hxg6 {[%clk 0:03:26.9]} 14... fxg6 {[%clk 0:04:05]} 15. c5
{[%clk 0:03:14.7]} 15... Bxe4 {[%clk 0:03:59.5]} 16. Bc4+ {[%clk 0:03:08.1]}
16... d5 {[%clk 0:03:53]} 17. Bb3 {[%clk 0:02:59.6]} 17... c6 {[%clk 0:03:50.5]}
18. f3 {[%clk 0:02:57.5]} 18... Bf5 {[%clk 0:03:48.8]} 19. g4 {[%clk 0:02:54.5]}
19... Be6 {[%clk 0:03:43]} 20. Qe2 {[%clk 0:02:40.6]} 20... Qd7 {[%clk
0:03:34.4]} 21. Qh2 {[%clk 0:02:33]} 21... Kf7 {[%clk 0:03:25.9]} 22. O-O {[%clk
0:02:16.6]} 22... Rh8 {[%clk 0:03:19.9]} 23. Qg2 {[%clk 0:02:09.3]} 23... Bd4+
{[%clk 0:03:08.6]} 24. Rf2 {[%clk 0:01:58.5]} 24... Rh4 {[%clk 0:03:05.1]} 25.
Bxg5 {[%clk 0:01:46.5]} 25... Bxf2+ {[%clk 0:02:51.7]} 26. Qxf2 {[%clk
0:01:43.7]} 26... Rh7 {[%clk 0:02:44]} 27. f4 {[%clk 0:01:33.5]} 27... Rah8
{[%clk 0:02:36.6]} 28. f5 {[%clk 0:01:28.3]} 28... gxf5 {[%clk 0:02:28.2]} 29.
gxf5 {[%clk 0:01:23.7]} 29... Rh1+ {[%clk 0:02:21.8]} 30. Kg2 {[%clk 0:01:20.6]}
30... R1h2+ {[%clk 0:02:20.5]} 31. Kf1 {[%clk 0:01:15.4]} 31... Rxf2+ {[%clk
0:02:19.2]} 32. Kxf2 {[%clk 0:01:15]} 32... Bxf5 {[%clk 0:02:18.2]} 33. Rf1
{[%clk 0:00:57.2]} 33... Rh2+ {[%clk 0:02:14.3]} 34. Ke1 {[%clk 0:00:55.9]}
34... Qe6+ {[%clk 0:02:12.4]} 35. Kd1 {[%clk 0:00:54.1]} 35... Qe2+ {[%clk
0:02:11.2]} 36. Kc1 {[%clk 0:00:49.8]} 36... Qxf1+ {[%clk 0:02:08.3]} 37. Bd1
{[%clk 0:00:45.5]} 37... Qc4+ {[%clk 0:02:06.9]} 38. Bc2 {[%clk 0:00:43.1]}
38... Qxc2# {[%clk 0:02:05.8]} 0-1

[Event "Live Chess"]
[Site "Chess.com"]
[Date "2023.05.21"]
[Round "-"]
[White "Conradical12"]
[Black "CheckThis4"]
[Result "0-1"]
[WhiteElo "1602"]
[BlackElo "2541"]
[TimeControl "300"]
[EndTime "16:31:18 PDT"]
[Termination "CheckThis4 won by resignation"]

1. e4 {[%clk 0:04:57.2]} 1... Nc6 {[%clk 0:04:57.2]} 2. Nf3 {[%clk 0:04:56.6]}
2... e5 {[%clk 0:04:55.9]} 3. Bb5 {[%clk 0:04:55.5]} 3... Nf6 {[%clk 0:04:42.9]}
4. O-O {[%clk 0:04:53.9]} 4... d6 {[%clk 0:04:36.5]} 5. d4 {[%clk 0:04:48.9]}
5... exd4 {[%clk 0:04:25.5]} 6. Nxd4 {[%clk 0:04:45.6]} 6... Bd7 {[%clk
0:04:24.3]} 7. Nc3 {[%clk 0:04:42.2]} 7... Be7 {[%clk 0:04:21.9]} 8. Nxc6 {[%clk
0:04:38.2]} 8... bxc6 {[%clk 0:04:20.6]} 9. Bd3 {[%clk 0:04:36.9]} 9... O-O
{[%clk 0:04:18.7]} 10. Be3 {[%clk 0:04:36.3]} 10... c5 {[%clk 0:04:16.8]} 11.
Qf3 {[%clk 0:04:34.3]} 11... Rb8 {[%clk 0:04:14]} 12. Rab1 {[%clk 0:04:32.7]}
12... Bc6 {[%clk 0:04:11.7]} 13. Nd5 {[%clk 0:04:29.2]} 13... Bxd5 {[%clk
0:04:02.5]} 14. exd5 {[%clk 0:04:28.1]} 14... Nd7 {[%clk 0:03:59.3]} 15. Rfe1
{[%clk 0:04:25.4]} 15... Ne5 {[%clk 0:03:55.9]} 16. Qe4 {[%clk 0:04:23.1]} 16...
f5 {[%clk 0:03:54]} 17. Qa4 {[%clk 0:04:20]} 17... f4 {[%clk 0:03:46.9]} 18.
Bxf4 {[%clk 0:04:16.7]} 18... Rb4 {[%clk 0:03:45.1]} 19. Qxb4 {[%clk 0:04:07.8]}
19... cxb4 {[%clk 0:03:42.1]} 20. Bxe5 {[%clk 0:04:07.7]} 20... dxe5 {[%clk
0:03:41.4]} 21. Rxe5 {[%clk 0:04:07.3]} 21... Bd6 {[%clk 0:03:39.9]} 22. Rh5
{[%clk 0:04:04]} 22... g6 {[%clk 0:03:38.9]} 23. Rh3 {[%clk 0:04:02.3]} 23...
Qf6 {[%clk 0:03:36.3]} 24. Rf3 {[%clk 0:04:00.5]} 24... Qe5 {[%clk 0:03:33.6]}
25. Rxf8+ {[%clk 0:03:53.9]} 25... Kxf8 {[%clk 0:03:33.5]} 26. g3 {[%clk
0:03:53.2]} 26... Qxd5 {[%clk 0:03:32.5]} 27. Re1 {[%clk 0:03:50.9]} 27... Qxa2
{[%clk 0:03:31.1]} 28. Bb5 {[%clk 0:03:49.4]} 28... Qxb2 {[%clk 0:03:28.1]} 29.
Re8+ {[%clk 0:03:46.7]} 29... Kg7 {[%clk 0:03:25.1]} 0-1

[Event "Live Chess"]
[Site "Chess.com"]
[Date "2023.05.21"]
[Round "-"]
[White "Shepherds_Pie"]
[Black "Tushinskiy"]
[Result "0-1"]
[WhiteElo "1922"]
[BlackElo "2174"]
[TimeControl "300"]
[EndTime "16:31:28 PDT"]
[Termination "Tushinskiy won by resignation"]

1. c4 {[%clk 0:04:56.1]} 1... e5 {[%clk 0:04:55.9]} 2. Nc3 {[%clk 0:04:54.7]}
2... Bc5 {[%clk 0:04:50.5]} 3. e3 {[%clk 0:04:53.2]} 3... Bb6 {[%clk 0:04:48.9]}
4. Nf3 {[%clk 0:04:51.3]} 4... d6 {[%clk 0:04:47.6]} 5. Qc2 {[%clk 0:04:48.3]}
5... Ne7 {[%clk 0:04:46]} 6. Be2 {[%clk 0:04:47.2]} 6... Nbc6 {[%clk 0:04:44.2]}
7. a3 {[%clk 0:04:45.2]} 7... Bf5 {[%clk 0:04:43]} 8. d3 {[%clk 0:04:42.9]} 8...
Bg6 {[%clk 0:04:41.1]} 9. O-O {[%clk 0:04:41.5]} 9... O-O {[%clk 0:04:39.7]} 10.
b4 {[%clk 0:04:39.7]} 10... a6 {[%clk 0:04:38.7]} 11. Bb2 {[%clk 0:04:36.3]}
11... f5 {[%clk 0:04:36.8]} 12. Nd2 {[%clk 0:04:32.1]} 12... Qd7 {[%clk
0:04:33.4]} 13. Rac1 {[%clk 0:04:28.9]} 13... Rac8 {[%clk 0:04:31.6]} 14. Nd5
{[%clk 0:04:27.5]} 14... Nxd5 {[%clk 0:04:28.6]} 15. cxd5 {[%clk 0:04:26.4]}
15... Ne7 {[%clk 0:04:27.8]} 16. Qb3 {[%clk 0:04:25.9]} 16... f4 {[%clk
0:04:17.8]} 17. exf4 {[%clk 0:04:19.3]} 17... Rxf4 {[%clk 0:04:14.6]} 18. Nf3
{[%clk 0:04:11.7]} 18... Rcf8 {[%clk 0:04:12.7]} 19. Rc4 {[%clk 0:04:09]} 19...
R4f7 {[%clk 0:04:09.3]} 20. Bc1 {[%clk 0:03:59.4]} 20... h6 {[%clk 0:04:03.5]}
21. Be3 {[%clk 0:03:55.5]} 21... Bxe3 {[%clk 0:04:01.7]} 22. fxe3 {[%clk
0:03:54.5]} 22... Nxd5 {[%clk 0:04:01]} 23. Nh4 {[%clk 0:03:40.6]} 23... Rxf1+
{[%clk 0:03:56.3]} 24. Bxf1 {[%clk 0:03:39.2]} 24... Qf7 {[%clk 0:03:36.1]} 25.
Rc1 {[%clk 0:03:28.7]} 25... Nxe3 {[%clk 0:03:34.7]} 26. Qxf7+ {[%clk 0:03:27]}
26... Bxf7 {[%clk 0:03:33.4]} 27. Be2 {[%clk 0:03:24.5]} 27... Bd5 {[%clk
0:03:29.2]} 28. Rxc7 {[%clk 0:03:17]} 28... Bc6 {[%clk 0:03:25.5]} 29. Nf3
{[%clk 0:03:12.2]} 29... Kh7 {[%clk 0:03:18.6]} 30. d4 {[%clk 0:03:09.5]} 30...
e4 {[%clk 0:03:17.4]} 31. Nd2 {[%clk 0:03:00]} 31... d5 {[%clk 0:03:14.6]} 32.
Re7 {[%clk 0:02:53]} 32... Nf5 {[%clk 0:03:12.8]} 33. Re5 {[%clk 0:02:50.1]}
33... Nxd4 {[%clk 0:03:11.4]} 34. Bg4 {[%clk 0:02:47.7]} 34... Kg6 {[%clk
0:03:07.3]} 35. h4 {[%clk 0:02:45]} 35... Kf6 {[%clk 0:03:06.1]} 36. Rh5 {[%clk
0:02:39.3]} 36... g6 {[%clk 0:02:58.3]} 37. Rxh6 {[%clk 0:02:37.8]} 37... Kg7
{[%clk 0:02:57.1]} 0-1

[Event "Live Chess"]
[Site "Chess.com"]
[Date "2023.05.21"]
[Round "-"]
[White "Hussamalhaidar"]
[Black "Doge_Dandolo"]
[Result "0-1"]
[WhiteElo "1039"]
[BlackElo "2011"]
[TimeControl "300"]
[EndTime "16:31:39 PDT"]
[Termination "Doge_Dandolo won by checkmate"]

1. b3 {[%clk 0:04:56.8]} 1... Nf6 {[%clk 0:04:57.3]} 2. Bb2 {[%clk 0:04:47.5]}
2... e6 {[%clk 0:04:55.5]} 3. e3 {[%clk 0:04:46]} 3... Be7 {[%clk 0:04:53.2]} 4.
d4 {[%clk 0:04:43.4]} 4... c5 {[%clk 0:04:40.6]} 5. dxc5 {[%clk 0:04:40.9]} 5...
Bxc5 {[%clk 0:04:37.8]} 6. Bd3 {[%clk 0:04:37.5]} 6... Nc6 {[%clk 0:04:35.9]} 7.
Nf3 {[%clk 0:04:32.6]} 7... a6 {[%clk 0:04:34]} 8. Nbd2 {[%clk 0:04:29.3]} 8...
b5 {[%clk 0:04:32.8]} 9. O-O {[%clk 0:04:26]} 9... Bb7 {[%clk 0:04:31.8]} 10.
Ne5 {[%clk 0:04:20.2]} 10... Qc7 {[%clk 0:04:26.9]} 11. f4 {[%clk 0:04:16.7]}
11... d6 {[%clk 0:04:22.5]} 12. Nxc6 {[%clk 0:04:01.4]} 12... Bxe3+ {[%clk
0:04:16.6]} 13. Kh1 {[%clk 0:03:57]} 13... Qxc6 {[%clk 0:04:12.5]} 14. Nf3
{[%clk 0:03:49.1]} 14... Ng4 {[%clk 0:03:51.2]} 15. Qe2 {[%clk 0:03:25.2]} 15...
Bb6 {[%clk 0:03:39.4]} 16. Rae1 {[%clk 0:02:57.9]} 16... h5 {[%clk 0:03:36.1]}
17. Be4 {[%clk 0:02:52]} 17... Qc7 {[%clk 0:03:33.5]} 18. Bxb7 {[%clk
0:02:46.5]} 18... Qxb7 {[%clk 0:03:32.5]} 19. h3 {[%clk 0:02:24]} 19... Qe7
{[%clk 0:03:11.4]} 20. Ng5 {[%clk 0:01:50.7]} 20... Nf6 {[%clk 0:03:02.7]} 21.
f5 {[%clk 0:01:36.3]} 21... e5 {[%clk 0:02:59]} 22. c4 {[%clk 0:01:16.8]} 22...
bxc4 {[%clk 0:02:45.3]} 23. Qxc4 {[%clk 0:01:09.3]} 23... O-O {[%clk 0:02:41.6]}
24. h4 {[%clk 0:01:01.3]} 24... Ng4 {[%clk 0:02:38.6]} 25. Nf3 {[%clk
0:00:36.7]} 25... Rfd8 {[%clk 0:02:32.9]} 26. Nd4 {[%clk 0:00:23.7]} 26... Qxh4+
{[%clk 0:02:30]} 27. Kg1 {[%clk 0:00:14.5]} 27... Qh2# {[%clk 0:02:28.7]} 0-1

[Event "Live Chess"]
[Site "Chess.com"]
[Date "2023.05.21"]
[Round "-"]
[White "Cimon"]
[Black "nigelst"]
[Result "1-0"]
[WhiteElo "1883"]
[BlackElo "1795"]
[TimeControl "300"]
[EndTime "16:31:43 PDT"]
[Termination "Cimon won on time"]

1. Nf3 {[%clk 0:04:57.1]} 1... Nf6 {[%clk 0:04:57.8]} 2. c4 {[%clk 0:04:55.5]}
2... e6 {[%clk 0:04:56.5]} 3. Nc3 {[%clk 0:04:53.9]} 3... Be7 {[%clk 0:04:53]}
4. d3 {[%clk 0:04:52.3]} 4... O-O {[%clk 0:04:51.6]} 5. g3 {[%clk 0:04:50.8]}
5... d6 {[%clk 0:04:49.4]} 6. Bg2 {[%clk 0:04:49.3]} 6... Nbd7 {[%clk
0:04:48.6]} 7. e4 {[%clk 0:04:47.7]} 7... e5 {[%clk 0:04:47.5]} 8. O-O {[%clk
0:04:45.1]} 8... b6 {[%clk 0:04:45.1]} 9. h3 {[%clk 0:04:40.5]} 9... Bb7 {[%clk
0:04:43.4]} 10. Be3 {[%clk 0:04:38.8]} 10... Nc5 {[%clk 0:04:41.4]} 11. b4
{[%clk 0:04:33.9]} 11... Ncd7 {[%clk 0:04:34.1]} 12. Nh2 {[%clk 0:04:28.2]}
12... c5 {[%clk 0:04:30.8]} 13. a3 {[%clk 0:04:26.7]} 13... Rc8 {[%clk
0:04:26.2]} 14. f4 {[%clk 0:04:20.4]} 14... exf4 {[%clk 0:04:24]} 15. gxf4
{[%clk 0:04:18.7]} 15... Nb8 {[%clk 0:04:13.7]} 16. Ng4 {[%clk 0:04:11.8]} 16...
Nxg4 {[%clk 0:04:11.5]} 17. hxg4 {[%clk 0:04:10.1]} 17... Bf6 {[%clk 0:04:10.4]}
18. Rc1 {[%clk 0:04:07.1]} 18... Nd7 {[%clk 0:03:57.5]} 19. g5 {[%clk
0:04:03.8]} 19... Bxc3 {[%clk 0:03:53.4]} 20. Rxc3 {[%clk 0:04:02.4]} 20... f6
{[%clk 0:03:51.6]} 21. Bh3 {[%clk 0:03:40.7]} 21... Rc7 {[%clk 0:03:47.6]} 22.
Rc2 {[%clk 0:03:34.4]} 22... fxg5 {[%clk 0:03:43]} 23. fxg5 {[%clk 0:03:27.2]}
23... Rxf1+ {[%clk 0:03:39.5]} 24. Qxf1 {[%clk 0:03:24.5]} 24... Ne5 {[%clk
0:03:39]} 25. Rf2 {[%clk 0:03:15.6]} 25... Rf7 {[%clk 0:03:35.7]} 26. Be6 {[%clk
0:03:13.5]} 26... Qe7 {[%clk 0:03:25.8]} 27. Bxf7+ {[%clk 0:03:12]} 27... Nxf7
{[%clk 0:03:15.7]} 28. Qg2 {[%clk 0:02:57.5]} 28... Ne5 {[%clk 0:03:13]} 29. Rd2
{[%clk 0:02:45.5]} 29... Qf7 {[%clk 0:02:57.9]} 30. Rf2 {[%clk 0:02:37.8]} 30...
Qe6 {[%clk 0:02:39.3]} 31. Rf5 {[%clk 0:02:10.6]} 31... g6 {[%clk 0:01:24.8]}
32. Rf6 {[%clk 0:02:06.7]} 32... Qe7 {[%clk 0:01:20.2]} 33. Qe2 {[%clk 0:01:58]}
33... Qd7 {[%clk 0:01:12.6]} 34. Kg2 {[%clk 0:01:24.4]} 34... Bc8 {[%clk
0:00:53]} 35. Qf2 {[%clk 0:00:38.5]} 35... Qh3+ {[%clk 0:00:16.5]} 36. Kg1
{[%clk 0:00:37.1]} 36... Qg4+ {[%clk 0:00:15.4]} 37. Kf1 {[%clk 0:00:20.5]}
37... Qd1+ {[%clk 0:00:13]} 38. Qe1 {[%clk 0:00:18.3]} 38... Qxe1+ {[%clk
0:00:11.7]} 39. Kxe1 {[%clk 0:00:16.7]} 39... Nxd3+ {[%clk 0:00:10.8]} 40. Kd2
{[%clk 0:00:15.3]} 40... Ne5 {[%clk 0:00:09]} 41. Rxd6 {[%clk 0:00:13]} 41...
Ba6 {[%clk 0:00:07.5]} 42. b5 {[%clk 0:00:11.3]} 42... Nxc4+ {[%clk 0:00:06.3]}
43. Kc3 {[%clk 0:00:09.3]} 43... Nxd6 {[%clk 0:00:06.2]} 44. bxa6 {[%clk
0:00:07.5]} 44... Nf7 {[%clk 0:00:05.2]} 45. Kc4 {[%clk 0:00:06.5]} 45... Ne5+
{[%clk 0:00:04.7]} 46. Kd5 {[%clk 0:00:05.4]} 46... Nf3 {[%clk 0:00:03.8]} 47.
Kc6 {[%clk 0:00:04.7]} 47... Kf7 {[%clk 0:00:01.3]} 48. Kb7 {[%clk 0:00:04]}
48... Ke6 {[%clk 0:00:01.2]} 49. Kxa7 {[%clk 0:00:03.4]} 1-0

[Event "Live Chess"]
[Site "Chess.com"]
[Date "2023.05.21"]
[Round "-"]
[White "LutherSullivan"]
[Black "JohanKjeldahl"]
[Result "1-0"]
[WhiteElo "2083"]
[BlackElo "1861"]
[TimeControl "300"]
[EndTime "16:32:02 PDT"]
[Termination "LutherSullivan won by resignation"]

1. d4 {[%clk 0:04:58.1]} 1... Nf6 {[%clk 0:04:58.6]} 2. Nf3 {[%clk 0:04:57.1]}
2... e6 {[%clk 0:04:55]} 3. g3 {[%clk 0:04:53.9]} 3... b6 {[%clk 0:04:53.7]} 4.
Bg2 {[%clk 0:04:53.2]} 4... Bb7 {[%clk 0:04:53.1]} 5. O-O {[%clk 0:04:52.8]}
5... Be7 {[%clk 0:04:51.7]} 6. Re1 {[%clk 0:04:46.8]} 6... d5 {[%clk 0:04:50.4]}
7. a4 {[%clk 0:04:42.7]} 7... O-O {[%clk 0:04:49.5]} 8. a5 {[%clk 0:04:41.6]}
8... Nbd7 {[%clk 0:04:46.7]} 9. a6 {[%clk 0:04:40]} 9... Bc8 {[%clk 0:04:41.9]}
10. c4 {[%clk 0:04:34.4]} 10... c6 {[%clk 0:04:34.4]} 11. b3 {[%clk 0:04:29.6]}
11... Ne4 {[%clk 0:04:32.4]} 12. Qc2 {[%clk 0:04:26.1]} 12... f5 {[%clk
0:04:30.9]} 13. cxd5 {[%clk 0:04:13.1]} 13... cxd5 {[%clk 0:04:28.9]} 14. Qc6
{[%clk 0:04:11.1]} 14... Rb8 {[%clk 0:04:16.1]} 15. Qxe6+ {[%clk 0:04:07.6]}
15... Kh8 {[%clk 0:04:13.8]} 16. Bf4 {[%clk 0:04:05.3]} 16... Ndc5 {[%clk
0:03:58]} 17. Qc6 {[%clk 0:03:58.8]} 17... Bd7 {[%clk 0:03:47.8]} 18. Qxd5
{[%clk 0:03:56.7]} 18... Be6 {[%clk 0:03:31.3]} 19. Qxd8 {[%clk 0:03:54.1]}
19... Rbxd8 {[%clk 0:03:30.2]} 20. dxc5 {[%clk 0:03:52.9]} 20... Bxc5 {[%clk
0:03:27.9]} 21. e3 {[%clk 0:03:47.7]} 21... Bxb3 {[%clk 0:03:24.6]} 22. Na3
{[%clk 0:03:38.1]} 22... Bb4 {[%clk 0:03:21.3]} 23. Reb1 {[%clk 0:03:34.4]}
23... Bc3 {[%clk 0:03:17.1]} 24. Nd4 {[%clk 0:03:22.6]} 24... Bxa1 {[%clk
0:03:12]} 25. Rxa1 {[%clk 0:03:21.8]} 25... Bd5 {[%clk 0:03:02.2]} 26. Nab5
{[%clk 0:03:19.2]} 26... g5 {[%clk 0:02:57.2]} 27. Be5+ {[%clk 0:03:16.8]} 27...
Kg8 {[%clk 0:02:54.8]} 28. Nxa7 {[%clk 0:03:11.9]} 28... Rf7 {[%clk 0:02:45.6]}
29. Nab5 {[%clk 0:03:09.5]} 29... Bc4 {[%clk 0:02:32.1]} 30. a7 {[%clk
0:03:05.7]} 30... Bxb5 {[%clk 0:02:22.3]} 31. a8=Q {[%clk 0:02:59.5]} 1-0